lending/lending_fUSD_20240504
["ID","MTS","AMOUNT","RATE_DAILY","PERIOD"]
[325383208,1714804254302,-498.98,0.00017955,2]
[325383209,1714804254312,-326.9,0.00017961,2]
[325383210,1714804254325,-450.0,0.00018,3]
[325383211,1714804254334,-155.0,0.00018,2]
[325383212,1714804254344,-3000.0,0.00018,2]
[325383213,1714804254355,-797.0,0.00018,2]
[325383214,1714804254364,-1000.0,0.00018,2]
[325383215,1714804254374,-23863.08940245,0.00018008,2]
[325383216,1714804254383,-5125.06002161,0.00018043,2]
[325383217,1714804254392,-501.02,0.00018447,2]
[325383218,1714804254402,-2640.28337998,0.00018674,2]
[325383219,1714804254411,-160.0,0.00018677,2]
[325383220,1714804254422,-160.0,0.00018686,2]
[325383221,1714804254431,-160.0,0.00018695,2]
[325383222,1714804254442,-4018.887659,0.00018892,2]
[325383223,1714804254451,-182.61757425,0.000189,2]
[325383224,1714804254460,-500.0,0.00019178,2]
[325383225,1714804254470,-223.62795639,0.00019178,2]
[325383226,1714804254479,-1747.9,0.00019178,2]
[325383227,1714804254488,-873.03966947,0.000195,2]
[325383228,1714804254497,-165.70892292,0.00019641,2]
[325383229,1714804254507,-1227.0,0.00019699,2]
[325383230,1714804254516,-438.0,0.00019699,2]
[325383231,1714804254526,-611.0,0.00019699,2]
[325383232,1714804254535,-808.0,0.00019699,2]
[325383233,1714804254544,-209.0,0.00019699,2]
[325383234,1714804254553,-1786.0,0.00019699,2]
[325383235,1714804254562,-421.0,0.00019699,2]
[325383236,1714804254572,-150.0,0.00019699,2]
[325383237,1714804254582,-1477.0,0.00019699,2]
[325383238,1714804254596,-2450.0,0.00019699,2]
[325383239,1714804254605,-215.0,0.00019699,2]
[325383240,1714804254614,-444.0,0.00019699,2]
[325383241,1714804254624,-1139.0,0.00019699,2]
[325383242,1714804254633,-1643.0,0.00019699,2]
[325383243,1714804254642,-3141.634,0.00019699,2]
[325383244,1714804254651,-5740.0,0.00019699,2]
[325383245,1714804254662,-454.067,0.00019699,2]
[325383246,1714804254671,-1396.0,0.00019699,2]
[325383247,1714804254681,-2300.0,0.00019699,2]
[325383248,1714804254692,-462.0,0.00019699,2]
[325383249,1714804254701,-971.0,0.00019699,2]
[325383250,1714804254710,-23035.691,0.00019699,2]
[325383251,1714804254719,-542.0,0.00019699,2]
[325383252,1714804254729,-498.98,0.0001975,2]
[325383253,1714804254737,-326.9,0.00019757,2]
[325383254,1714804254746,-5125.06002161,0.00019757,2]
[325383255,1714804254755,-165.67893068,0.000199,2]
[325383256,1714804254765,-1100.0,0.0001997,2]
[325383257,1714804254774,-1159.41602652,0.0002,2]
[325383258,1714804254783,-6227.01127323,0.0002,2]
[325383259,1714804254792,-155.3142834,0.0002,2]
[325383260,1714804254801,-184.05186467,0.0002,2]
[325383261,1714804254810,-5175.72990395,0.0002,2]
[325383262,1714804254820,-500.0,0.0002,3]
[325383263,1714804254829,-628.77472,0.0002,2]
[325383264,1714804254838,-155.33392723,0.0002,2]
[325383265,1714804254848,-270.7635173,0.0002,2]
[325383266,1714804254858,-409.44080044,0.0002,2]
[325383267,1714804254867,-14365.59906223,0.0002,2]
[325383268,1714804254877,-860.48028371,0.0002,2]
[325383269,1714804254887,-501.02,0.00020124,2]
[325383270,1714804254897,-23863.08940245,0.00020562,2]
[325383271,1714804254906,-167.39,0.0002058,2]
[325383272,1714804254916,-1000.0,0.000208,2]
[325383273,1714804254925,-1010.0,0.000208,2]
[325383274,1714804254935,-4018.887659,0.0002089,2]
[325383275,1714804254944,-155.0,0.000209,2]
[325383276,1714804254954,-821.74174215,0.00020972,2]
[325383277,1714804254963,-718.82272761,0.00021,2]
[325383278,1714804254973,-2213.05089066,0.00021,2]
[325383279,1714804254982,-1684.0,0.000214,2]
[325383280,1714804254991,-1628.0,0.000214,2]
[325383281,1714804255001,-5125.06002161,0.00021471,2]
[325383282,1714804255012,-498.98,0.00021546,2]
[325383283,1714804255022,-326.9,0.00021553,2]
[325383284,1714804255032,-195.55,0.00021644,2]
[325383285,1714804255041,-171.74,0.00021644,2]
[325383286,1714804255051,-168.82,0.00021644,2]
[325383287,1714804255061,-167.39,0.00021712,2]
[325383288,1714804255070,-1670.0,0.000218,2]
[325383289,1714804255080,-165.70892292,0.00021889,2]
[325383290,1714804255089,-3484.01947295,0.000219,2]
[325383291,1714804255098,-2000.0,0.00021918,3]
[325383292,1714804255107,-2000.0,0.00021918,2]
[325383293,1714804255116,-250.0,0.00021918,2]
[325383294,1714804255126,-550.0,0.00022,3]
[325383295,1714804255135,-161.300305,0.00022,3]
[325383296,1714804255144,-155.24033145,0.00022483,2]
[325383297,1714804255153,-150.0,0.00022488,2]
[325383298,1714804255163,-18239.17052759,0.000225,2]
[325383299,1714804255171,-150.0,0.000225,3]
[325383300,1714804255181,-150.0,0.00022635,4]
[325383301,1714804255192,-449.981,0.00022699,2]
[325383302,1714804255202,-175.641,0.00022699,2]
[325383303,1714804255212,-542.0,0.00022699,2]
[325383304,1714804255221,-150.0,0.00022782,4]
[325383305,1714804255230,-167.39,0.00022845,2]
[325383306,1714804255240,-4018.887659,0.00022888,2]
[325383307,1714804255250,-150.0,0.00022929,4]
[325383308,1714804255259,-17754.04407659,0.00023,2]
[325383309,1714804255268,-3000.0,0.00023,2]
[325383310,1714804255278,-150.0,0.00023,3]
[325383311,1714804255287,-150.0,0.00023076,4]
[325383312,1714804255296,-828.56,0.00023096,2]
[325383313,1714804255306,-1823.46,0.00023096,2]
[325383314,1714804255315,-23863.08940245,0.00023116,2]
[325383315,1714804255325,-5125.06002161,0.00023186,2]
[325383316,1714804255334,-150.0,0.00023223,4]
[325383317,1714804255344,-150.0,0.0002337,4]
[325383318,1714804255353,-150.0,0.0002337,2]
[325383319,1714804255363,-150.0,0.0002337,2]
[325383320,1714804255373,-522.7,0.0002337,2]
[325383321,1714804255382,-419.66,0.0002337,2]
[325383322,1714804255392,-350.77,0.0002337,2]
[325383323,1714804255401,-522.7,0.0002337,2]
[325383324,1714804255411,-522.34,0.0002337,2]
[325383325,1714804255421,-150.0,0.0002337,2]
[325383326,1714804255431,-150.0,0.0002337,2]
[325383327,1714804255441,-150.0,0.0002337,2]
[325383328,1714804255451,-150.0,0.0002337,2]
[325383329,1714804255460,-150.0,0.0002337,2]
[325383330,1714804255470,-150.0,0.0002337,2]
[325383331,1714804255480,-150.0,0.0002337,2]
[325383332,1714804255490,-327.49,0.0002337,2]
[325383333,1714804255500,-2000.61208485,0.000234,2]
[325383334,1714804255510,-150.0,0.000235,3]
[325383335,1714804255520,-150.0,0.00023517,4]
[325383336,1714804255531,-150.0,0.00023663,4]
[325383337,1714804255541,-150.0,0.0002381,4]
[325383338,1714804255551,-154.17868747,0.00023909,2]
[325383339,1714804255562,-150.0,0.00023957,4]
[325383340,1714804255571,-167.39,0.00023977,2]
[325383341,1714804255580,-600.0,0.00024,3]
[325383342,1714804255593,-433.64523924,0.00024,2]
[325383343,1714804255603,-150.0,0.00024,4]
[325383344,1714804255612,-150.0,0.00024104,4]
[325383345,1714804255622,-165.70892292,0.00024137,2]
[325383346,1714804255633,-150.0,0.00024251,4]
[325383347,1714804255642,-159.56,0.00024329,15]
[325383348,1714804255653,-150.0,0.00024398,4]
[325383349,1714804255663,-1054.95907986,0.00024401,2]
[325383350,1714804255674,-1103.37546117,0.000245,2]
[325383351,1714804255685,-150.0,0.000245,4]
[325383352,1714804255695,-150.0,0.00024545,4]
[325383353,1714804255706,-9013.88892551,0.00024657,2]
[325383354,1714804255716,-888.0,0.00024657,2]
[325383355,1714804255727,-373.21,0.00024658,2]
[325383356,1714804255737,-150.0,0.00024692,4]
[325383357,1714804255747,-155.13321013,0.0002475,2]
[325383358,1714804255757,-200.0,0.00024799,2]
[325383359,1714804255766,-1000.0,0.00024799,2]
[325383360,1714804255776,-500.0,0.00024799,2]
[325383361,1714804255785,-200.0,0.00024799,2]
[325383362,1714804255795,-200.0,0.000248,2]
[325383363,1714804255804,-1000.0,0.000248,2]
[325383364,1714804255813,-200.0,0.000248,2]
[325383365,1714804255823,-500.0,0.000248,2]
[325383366,1714804255832,-500.0,0.000248,2]
[325383367,1714804255843,-200.0,0.000248,2]
[325383368,1714804255852,-200.0,0.000248,2]
[325383369,1714804255862,-150.0,0.00024839,4]
[325383370,1714804255871,-4018.887659,0.00024886,2]
[325383371,1714804255881,-10000.0,0.000249,2]
[325383372,1714804255891,-1000.0,0.000249,2]
[325383373,1714804255900,-182.61757425,0.000249,2]
[325383374,1714804255910,-5125.06002161,0.000249,2]
[325383375,1714804255919,-10539.43288264,0.000249,2]
[325383376,1714804255929,-3083.40829826,0.000249,9]
[325383377,1714804255940,-180.58685532,0.000249,2]
[325383378,1714804255950,-700.0,0.0002497,2]
[325383379,1714804255960,-150.5,0.0002497,15]
[325383380,1714804255969,-150.5,0.0002497,15]
[325383381,1714804255978,-150.5,0.0002498,15]
[325383382,1714804255987,-150.5,0.0002498,15]
[325383383,1714804255998,-150.0,0.00024986,4]
[325383384,1714804256008,-166.34515989,0.00024988,2]
[325383385,1714804256018,-150.5,0.0002499,15]
[325383386,1714804256028,-150.5,0.0002499,15]
[325383387,1714804256038,-153.55,0.0002499,2]
[325383388,1714804256048,-153.55,0.0002499,2]
[325383389,1714804256058,-153.55,0.0002499,2]
[325383390,1714804256067,-153.55,0.0002499,2]
[325383391,1714804256077,-153.55,0.0002499,2]
[325383392,1714804256087,-166.34515989,0.0002499,2]
[325383393,1714804256096,-13634.9605906,0.00024994,2]
[325383394,1714804256106,-1414.7442732,0.00024994,2]
[325383395,1714804256115,-639.838307,0.00024994,2]
[325383396,1714804256125,-136824.49745577,0.00024998,2]
[325383397,1714804256135,-6685.85378964,0.00024998,2]
[325383398,1714804256145,-1280.00005566,0.00024999,2]
[325383399,1714804256155,-218.23939816,0.00024999,2]
[325383400,1714804256165,-452.39828652,0.00025,3]
[325383401,1714804256174,-9359765.73513563,0.00025,2]
[325383402,1714804256184,-473.22824182,0.00025,2]
[325383403,1714804256194,-212.9822371,0.00025,2]
[325383404,1714804256203,-1000.0,0.00025,4]
[325383405,1714804256213,-4924.25806664,0.00025,2]
[325383406,1714804256224,-5000.0,0.00025,2]
[325383407,1714804256233,-456.66329758,0.00025,7]
[325383408,1714804256243,-5000.0,0.00025,2]
[325383409,1714804256253,-163.15091824,0.00025,2]
[325383410,1714804256262,-17229.27420184,0.00025,2]
[325383411,1714804256272,-1044.92255095,0.00025,2]
[325383412,1714804256281,-2607.3114918,0.00025,2]
[325383413,1714804256291,-484.0,0.00025,8]
[325383414,1714804256300,-23159.4520564,0.00025,30]
[325383415,1714804256310,-342.0,0.00025,2]
[325383416,1714804256319,-1000.0,0.00025,2]
[325383417,1714804256329,-1000.0,0.00025,2]
[325383418,1714804256339,-1000.0,0.00025,2]
[325383419,1714804256348,-1000.0,0.00025,2]
[325383420,1714804256358,-1000.0,0.00025,2]
[325383421,1714804256368,-1000.0,0.00025,2]
[325383422,1714804256377,-1000.0,0.00025,2]
[325383423,1714804256387,-1000.0,0.00025,2]
[325383424,1714804256396,-1000.0,0.00025,2]
[325383425,1714804256406,-1000.0,0.00025,2]
[325383426,1714804256415,-1000.0,0.00025,2]
[325383427,1714804256426,-1000.0,0.00025,2]
[325383428,1714804256436,-1000.0,0.00025,2]
[325383429,1714804256446,-1000.0,0.00025,2]
[325383430,1714804256456,-1000.0,0.00025,2]
[325383431,1714804256466,-1000.0,0.00025,2]
[325383432,1714804256475,-1000.0,0.00025,2]
[325383433,1714804256485,-1000.0,0.00025,2]
[325383434,1714804256495,-1000.0,0.00025,2]
[325383435,1714804256506,-1000.0,0.00025,2]
[325383436,1714804256516,-1000.0,0.00025,2]
[325383437,1714804256526,-1000.0,0.00025,2]
[325383438,1714804256536,-1000.0,0.00025,2]
[325383439,1714804256546,-1000.0,0.00025,2]
[325383440,1714804256556,-1000.0,0.00025,2]
[325383441,1714804256565,-1000.0,0.00025,2]
[325383442,1714804256575,-1000.0,0.00025,2]
[325383443,1714804256590,-1000.0,0.00025,2]
[325383444,1714804256600,-1000.0,0.00025,2]
[325383445,1714804256609,-1000.0,0.00025,2]
[325383446,1714804256618,-1000.0,0.00025,2]
[325383447,1714804256629,-186.24280344,0.00025,2]
[325383448,1714804256639,-315.68,0.00025,2]
[325383449,1714804256649,-167.44,0.00025,2]
[325383450,1714804256660,-653.0,0.00025,2]
[325383451,1714804256669,-2000.0,0.00025,2]
[325383452,1714804256679,-200.0,0.00025,2]
[325383453,1714804256689,-150.0,0.00025,2]
[325383454,1714804256699,-500.0,0.00025,2]
[325383455,1714804256708,-150.0,0.00025,4]
[325383456,1714804256718,-4295.1031173,0.00025076,2]
[325383457,1714804256728,-10164.3060264,0.00025093,2]
[325383458,1714804256737,-13180.42,0.0002511,5]
[325383459,1714804256747,-2100.0,0.00025438,2]
[325383460,1714804256757,-23863.08940245,0.0002567,2]
[325383461,1714804256767,-2576.51651022,0.00025773,2]
[325383462,1714804256776,-1000.0,0.00026,4]
[325383463,1714804256786,-650.0,0.00026,3]
[325383464,1714804256796,-974.60782133,0.00026027,4]
[325383465,1714804256805,-1060.49,0.00026055,2]
[325383466,1714804256815,-835.9,0.00026055,2]
[325383467,1714804256825,-29314.0,0.00026171,2]
[325383468,1714804256834,-1350.0,0.0002631,2]
[325383469,1714804256844,-165.70892292,0.00026385,2]
[325383470,1714804256854,-4018.887659,0.00026884,2]
[325383471,1714804256863,-1747.47434455,0.00027,2]
[325383472,1714804256873,-1000.0,0.00027,4]
[325383473,1714804256883,-2000.0,0.00027,2]
[325383474,1714804256893,-2000.0,0.0002701,2]
[325383475,1714804256902,-2000.0,0.0002702,2]
[325383476,1714804256912,-2000.0,0.0002703,2]
[325383477,1714804256922,-2109.160445,0.0002704,2]
[325383478,1714804256932,-300.0,0.00027397,2]
[325383479,1714804256943,-1000.0,0.00027397,30]
[325383480,1714804256953,-151.33,0.00027397,2]
[325383481,1714804256963,-560.0,0.00027397,10]
[325383482,1714804256973,-19972.78,0.00027397,2]
[325383483,1714804256983,-167.44,0.000277,2]
[325383484,1714804256992,-195.55,0.00027714,2]
[325383485,1714804257002,-168.82,0.00027714,2]
[325383486,1714804257013,-10539.43288264,0.0002789,2]
[325383487,1714804257023,-180.5868553,0.0002789,2]
[325383488,1714804257033,-700.0,0.0002797,2]
[325383489,1714804257043,-700.0,0.0002797,2]
[325383490,1714804257053,-400.62615796,0.0002797,2]
[325383491,1714804257063,-3000.0,0.00028,2]
[325383492,1714804257072,-23863.08940245,0.00028225,2]
[325383493,1714804257082,-165.70892292,0.00028632,2]
[325383494,1714804257092,-278.74765731,0.00028828,2]
[325383495,1714804257101,-4018.887659,0.00028882,2]
[325383496,1714804257111,-700.0,0.0002897,2]
[325383497,1714804257121,-400.0,0.0002897,2]
[325383498,1714804257131,-500000.0,0.00029,2]
[325383499,1714804257141,-985.65007,0.00029,7]
[325383500,1714804257151,-985.65007,0.00029,7]
[325383501,1714804257161,-151.0,0.00029,7]
[325383502,1714804257171,-151.0,0.00029,7]
[325383503,1714804257181,-151.0,0.00029,7]
[325383504,1714804257192,-151.0,0.00029,7]
[325383505,1714804257202,-151.0,0.00029,7]
[325383506,1714804257211,-210.56422176,0.00029435,2]
[325383507,1714804257221,-159.56,0.00029466,15]
[325383508,1714804257231,-259.9786928,0.000295,3]
[325383509,1714804257241,-725.7876,0.0003,4]
[325383510,1714804257252,-287.37218275,0.0003,2]
[325383511,1714804257262,-1001.77162983,0.0003,2]
[325383512,1714804257272,-1000.0,0.0003,4]
[325383513,1714804257282,-197.46690036,0.0003,12]
[325383514,1714804257291,-547.7,0.0003,2]
[325383515,1714804257301,-5677.45044794,0.0003,2]
[325383516,1714804257311,-301.50650281,0.00030136,2]
[325383517,1714804257321,-150.0,0.00030197,2]
[325383518,1714804257331,-424.1305,0.00030496,30]
[325383519,1714804257341,-6662.82675113,0.00030496,30]
[325383520,1714804257350,-520.80135905,0.00030496,120]
[325383521,1714804257360,-5225.64374217,0.00030496,30]
[325383522,1714804257370,-2792.38331232,0.00030496,30]
[325383523,1714804257380,-1789.42790205,0.00030496,10]
[325383524,1714804257390,-561.01968778,0.00030496,120]
[325383525,1714804257400,-706.73792706,0.00030496,120]
[325383526,1714804257411,-1000.0,0.00030496,30]
[325383527,1714804257420,-1000.0,0.00030496,30]
[325383528,1714804257431,-448.79222392,0.00030496,120]
[325383529,1714804257442,-1000.0,0.00030496,60]
[325383530,1714804257452,-1000.0,0.00030496,30]
[325383531,1714804257760,-1000.0,0.00030496,120]
[325383532,1714804257769,-1000.0,0.00030496,60]
[325383533,1714804257779,-14402.46111565,0.00030496,3]
[325383534,1714804257789,-5157.99113876,0.00030496,3]
[325383535,1714804257798,-399.6493034,0.00030496,120]
[325383536,1714804257808,-1000.0,0.00030496,60]
[325383537,1714804257817,-1000.0,0.00030496,60]
[325383538,1714804257827,-777.62854899,0.00030496,2]
[325383539,1714804257837,-552.89096849,0.00030496,2]
[325383540,1714804257847,-2153.31938913,0.00030496,120]
[325383541,1714804257857,-823.62467001,0.00030496,120]
[325383542,1714804257866,-1056.75980145,0.00030496,120]
[325383543,1714804257876,-262.10866597,0.00030496,120]
[325383544,1714804257885,-1199.63361784,0.00030496,120]
[325383545,1714804257895,-1039.86721201,0.00030496,120]
[325383546,1714804257904,-152.3876061,0.00030496,30]
[325383547,1714804257913,-463.47665217,0.00030496,30]
[325383548,1714804257923,-367.17533858,0.00030496,120]
[325383549,1714804257933,-55608.75981899,0.00030496,3]
[325383550,1714804257944,-11308.07097928,0.00030496,2]
[325383551,1714804257953,-3865.61270254,0.00030496,120]
[325383552,1714804257962,-3850.1786352,0.00030496,3]
[325383553,1714804257971,-11123.75946059,0.00030496,2]
[325383554,1714804257981,-2052.55593025,0.00030496,20]
[325383555,1714804257991,-151.48,0.00030496,2]
[325383556,1714804258000,-150.0,0.00030496,3]
[325383557,1714804258010,-685.0,0.00030496,30]
[325383558,1714804258021,-190.0,0.00030496,30]
[325383559,1714804258031,-1835.18979771,0.00030496,2]
[325383560,1714804258040,-2459.42472764,0.00030496,3]
[325383561,1714804258050,-1000.0,0.00030496,30]
[325383562,1714804258060,-4552.48275832,0.00030496,15]
[325383563,1714804258070,-338.43359904,0.00030496,2]
[325383564,1714804258079,-23863.08940245,0.00030779,2]
[325383565,1714804258089,-151.33,0.00030822,2]
[325383566,1714804258098,-4018.887659,0.0003088,2]
[325383567,1714804258108,-10539.43288264,0.0003088,2]
[325383568,1714804258117,-165.70892292,0.0003088,2]
[325383569,1714804258126,-180.5868553,0.0003088,2]
[325383570,1714804258136,-242.82,0.0003093,15]
[325383571,1714804258145,-150.5,0.0003093,15]
[325383572,1714804258155,-150.5,0.0003094,15]
[325383573,1714804258164,-150.5,0.0003094,15]
[325383574,1714804258174,-150.5,0.0003095,15]
[325383575,1714804258183,-150.5,0.0003095,15]
[325383576,1714804258195,-160.243981,0.00030959,7]
[325383577,1714804258204,-160.243981,0.00030959,7]
[325383578,1714804258213,-13145.4622785,0.00030959,2]
[325383579,1714804258222,-12655.9639664,0.00030959,2]
[325383580,1714804258231,-12166.4656543,0.00030959,2]
[325383581,1714804258240,-1363.9546189,0.00030959,2]
[325383582,1714804258250,-1313.1649647,0.00030959,2]
[325383583,1714804258259,-1262.3753105,0.00030959,2]
[325383584,1714804258268,-616.8679604,0.00030959,2]
[325383585,1714804258278,-593.8976137,0.00030959,2]
[325383586,1714804258287,-570.9272671,0.00030959,2]
[325383587,1714804258296,-9799.4050345,0.00030959,2]
[325383588,1714804258306,-9434.5040427,0.00030959,2]
[325383589,1714804258315,-9069.6030508,0.00030959,2]
[325383590,1714804258325,-4140.9078989,0.00030959,2]
[325383591,1714804258334,-3986.7126805,0.00030959,2]
[325383592,1714804258344,-3832.5174621,0.00030959,2]
[325383593,1714804258353,-151.0,0.00030977,7]
[325383594,1714804258363,-7660.10505,0.00030977,3]
[325383595,1714804258372,-151.0,0.00030977,7]
[325383596,1714804258381,-151.0,0.00030977,7]
[325383597,1714804258391,-151.0,0.00030977,7]
[325383598,1714804258400,-151.0,0.00030977,7]
[325383599,1714804258410,-255645.8684766,0.00030977,2]
[325383600,1714804258420,-378.26895946,0.0003098,4]
[325383601,1714804258429,-1611.19686988,0.0003098,4]
[325383602,1714804258439,-3224825.0094561,0.0003098,2]
[325383603,1714804258449,-1896905.03635094,0.0003098,2]
[325383604,1714804258460,-160.243981,0.0003098,7]
[325383605,1714804258469,-160.243981,0.0003098,7]
[325383606,1714804258478,-160.243981,0.0003098,7]
[325383607,1714804258488,-160.243981,0.0003098,7]
[325383608,1714804258497,-985.65007,0.0003098,7]
[325383609,1714804258507,-985.65007,0.0003098,7]
[325383610,1714804258517,-985.65007,0.0003098,7]
[325383611,1714804258527,-985.65007,0.0003098,7]
[325383612,1714804258536,-151.0,0.0003098,7]
[325383613,1714804258546,-151.0,0.0003098,7]
[325383614,1714804258555,-151.0,0.0003098,7]
[325383615,1714804258565,-151.0,0.0003098,7]
[325383616,1714804258575,-151.0,0.0003098,7]
[325383617,1714804258587,-151.0,0.0003098,7]
[325383618,1714804258598,-151.0,0.0003098,7]
[325383619,1714804258607,-151.0,0.0003098,7]
[325383620,1714804258617,-151.0,0.0003098,7]
[325383621,1714804258627,-151.0,0.0003098,7]
[325383622,1714804258637,-1000.0,0.00031,5]
[325383623,1714804258647,-167.44,0.00031,2]
[325383624,1714804258657,-155.00516971,0.0003113,7]
[325383625,1714804258668,-279.94872111,0.00031215,7]
[325383626,1714804258678,-155.53835772,0.00031251,7]
[325383627,1714804258689,-155.9186164,0.0003133,7]
[325383628,1714804258699,-156.25464671,0.00031359,7]
[325383629,1714804258708,-169.68304173,0.00031388,7]
[325383630,1714804258718,-156.25464671,0.00031413,7]
[325383631,1714804258728,-405.99348379,0.00031431,2]
[325383632,1714804258737,-156.25464671,0.00031578,7]
[325383633,1714804258747,-156.4668093,0.00031657,7]
[325383634,1714804258758,-155.53835772,0.00031692,7]
[325383635,1714804258767,-156.25464671,0.00031733,7]
[325383636,1714804258777,-260.31380509,0.00031825,7]
[325383637,1714804258787,-155.88263549,0.00031826,7]
[325383638,1714804258796,-155.9186164,0.00031854,7]
[325383639,1714804258806,-279.94872111,0.0003186,7]
[325383640,1714804258815,-1000.0,0.00032,5]
[325383641,1714804258825,-158.17,0.00032,2]
[325383642,1714804258834,-155.57086232,0.00032043,7]
[325383643,1714804258843,-156.25464671,0.00032069,7]
[325383644,1714804258853,-155.88263549,0.00032097,7]
[325383645,1714804258862,-166.23,0.00032248,120]
[325383646,1714804258872,-155.53835772,0.00032285,7]
[325383647,1714804258882,-279.94872111,0.00032342,7]
[325383648,1714804258892,-153.05181212,0.0003241,7]
[325383649,1714804258902,-155.88263549,0.00032534,7]
[325383650,1714804258911,-16736.218465,0.00032669,2]
[325383651,1714804258920,-34579.207962,0.00032669,2]
[325383652,1714804258930,-25267.653645,0.00032669,2]
[325383653,1714804258941,-279.94872111,0.00032671,7]
[325383654,1714804258950,-279.94872111,0.00032692,7]
[325383655,1714804258960,-151.0,0.00032877,7]
[325383656,1714804258970,-151.0,0.00032877,7]
[325383657,1714804258979,-151.0,0.00032877,7]
[325383658,1714804258988,-160.639458,0.00032877,7]
[325383659,1714804258998,-283.008644,0.00032877,7]
[325383660,1714804259007,-283.008644,0.00032877,7]
[325383661,1714804259019,-283.008644,0.00032877,7]
[325383662,1714804259028,-283.008644,0.00032877,7]
[325383663,1714804259038,-151.0,0.00032877,7]
[325383664,1714804259048,-151.0,0.00032877,7]
[325383665,1714804259058,-151.0,0.00032877,7]
[325383666,1714804259067,-151.0,0.00032877,7]
[325383667,1714804259077,-226.889923,0.00032877,7]
[325383668,1714804259086,-226.889923,0.00032877,7]
[325383669,1714804259096,-226.889923,0.00032877,7]
[325383670,1714804259105,-226.889923,0.00032877,7]
[325383671,1714804259115,-181.92438,0.00032877,7]
[325383672,1714804259124,-181.92438,0.00032877,7]
[325383673,1714804259133,-181.92438,0.00032877,7]
[325383674,1714804259142,-181.92438,0.00032877,7]
[325383675,1714804259151,-199.48643,0.00032877,7]
[325383676,1714804259161,-199.48643,0.00032877,7]
[325383677,1714804259170,-199.48643,0.00032877,7]
[325383678,1714804259179,-199.48643,0.00032877,7]
[325383679,1714804259190,-151.0,0.00032877,7]
[325383680,1714804259199,-151.0,0.00032877,7]
[325383681,1714804259208,-151.0,0.00032877,7]
[325383682,1714804259217,-151.0,0.00032877,7]
[325383683,1714804259226,-237.512164,0.00032877,7]
[325383684,1714804259236,-237.512164,0.00032877,7]
[325383685,1714804259245,-237.512164,0.00032877,7]
[325383686,1714804259254,-237.512164,0.00032877,7]
[325383687,1714804259264,-151.0,0.00032877,7]
[325383688,1714804259273,-151.0,0.00032877,7]
[325383689,1714804259282,-151.0,0.00032877,7]
[325383690,1714804259292,-151.0,0.00032877,7]
[325383691,1714804259302,-151.0,0.00032877,7]
[325383692,1714804259311,-151.0,0.00032877,7]
[325383693,1714804259321,-151.0,0.00032877,7]
[325383694,1714804259330,-151.0,0.00032877,7]
[325383695,1714804259340,-151.0,0.00032877,7]
[325383696,1714804259350,-151.0,0.00032877,7]
[325383697,1714804259359,-151.0,0.00032877,7]
[325383698,1714804259370,-151.0,0.00032877,7]
[325383699,1714804259379,-151.0,0.00032877,7]
[325383700,1714804259389,-275.532152,0.00032877,7]
[325383701,1714804259398,-151.0,0.00032877,7]
[325383702,1714804259407,-275.532152,0.00032877,7]
[325383703,1714804259417,-151.0,0.00032877,7]
[325383704,1714804259426,-275.532152,0.00032877,7]
[325383705,1714804259436,-170.919018,0.00032877,7]
[325383706,1714804259447,-275.532152,0.00032877,7]
[325383707,1714804259458,-151.0,0.00032877,7]